bitfinex-derivatives/quotes_ETHF0:USTF0_20250125
["timestamp","ask_amount","ask_price","bid_price","bid_amount"]
[1737770738869,0.48576,3293.9,3293.8,2.984]
[1737770739076,0.48579,3293.7,3293.6,0.00455235]
[1737770740092,2.82138305,3293.7,3293.6,0.00455235]
[1737770740387,0.48582,3293.5,3293.4,4.73726015]
[1737770740579,3.69362,3293.5,3293.4,4.73726015]
[1737770740779,7.64879344,3293.5,3293.4,3.94396015]
[1737770740984,8.62879344,3293.5,3293.4,3.94396015]
[1737770741189,13.62879344,3293.5,3293.4,0.54528074]
[1737770741788,3.69362,3293.5,3293.4,0.54528074]
[1737770741982,3.2078,3293.5,3293.4,0.54528074]
[1737770742281,0.00455235,3293.8,3293.6,0.4858]
[1737770742484,0.00455235,3293.8,3293.5,0.48582]
[1737770742787,0.00455235,3293.8,3293.4,0.4986]
[1737770743189,0.00455235,3293.8,3293.5,0.48582]
[1737770743994,0.00455235,3293.8,3293.4,0.4986]
[1737770744290,0.00455235,3293.8,3293.5,0.48582]
[1737770744480,0.00455235,3293.8,3293.7,0.48579]
[1737770748589,0.00455235,3293.8,3293.4,0.4986]
[1737770748793,0.49034235,3293.8,3293.5,0.48582]
[1737770749293,0.49034235,3293.8,3293.4,0.4986]
[1737770749696,0.49034235,3293.8,3293.5,0.48582]
[1737770749997,0.00455235,3293.8,3293.5,0.48582]
[1737770752886,0.00455235,3293.8,3293.4,0.4986]
[1737770753092,0.00455235,3293.8,3293.5,0.48582]
[1737770753294,0.00455235,3293.8,3293.6,0.48581]
[1737770759192,0.00455235,3293.8,3293.5,0.48582]
[1737770759395,0.00455235,3293.8,3293.6,0.48579]
[1737770761397,0.48582,3293.5,3293.4,0.4986]
[1737770761597,3.2078,3293.5,3293.1,0.51385235]
[1737770761901,3.2078,3293.5,3293.1,0.00455235]
[1737770761902,0.48587,3293.2,3293.1,0.00455235]
[1737770768106,0.97966,3293.3,3293.1,0.49043235]
[1737770768305,0.48587,3293.2,3293.1,0.00455235]
[1737770770602,0.48587,3293.2,3293.1,0.48435235]
[1737770771004,0.48587,3293.2,3293.1,0.00455235]
[1737770772406,0.48604,3292.1,3291.9,3.2078]
[1737770772602,0.48602,3292.2,3291.9,4.17366]
[1737770773601,3.2078,3292.4,3292.0,0.48604]
[1737770773602,0.48601,3292.3,3292.0,0.48604]
[1737770773810,0.48603,3292.2,3291.9,4.17366]
[1737770774307,0.48604,3292.1,3291.9,3.6876]
[1737770775204,0.48603,3292.2,3291.9,4.17366]
[1737770775610,0.48603,3292.1,3291.9,4.17366]
[1737770775811,0.48603,3292.1,3291.9,3.6876]
[1737770776011,3.2078,3292.4,3291.9,0.4798]
[1737770776202,0.48602,3292.2,3291.9,0.96585]
[1737770777009,0.48603,3292.1,3291.9,0.96585]
[1737770777207,0.48603,3292.1,3291.9,0.4798]
[1737770777509,3.2078,3292.4,3291.9,0.4798]
[1737770777712,3.2078,3292.4,3291.9,0.96586]
[1737770778009,0.48603,3292.1,3291.9,0.96586]
[1737770778509,0.48603,3292.1,3291.9,0.4798]
[1737770778911,0.48604,3292.0,3291.9,0.4798]
[1737770779310,3.2078,3292.4,3291.9,0.4798]
[1737770779810,0.48603,3292.1,3291.9,0.96586]
[1737770780009,3.2078,3292.4,3291.9,0.4798]
[1737770780407,3.6938,3292.4,3292.1,0.48602]
[1737770781015,3.2078,3292.4,3292.1,0.48602]
[1737770781214,3.69379,3292.4,3292.1,0.48602]
[1737770781808,3.2078,3292.4,3291.9,0.4798]
[1737770782010,0.48601,3292.3,3292.0,0.48604]
[1737770782415,0.486,3292.3,3292.0,0.48604]
[1737770782713,3.2078,3292.4,3291.9,0.4798]
[1737770783016,3.69379,3292.4,3292.1,0.48602]
[1737770783417,0.48602,3292.2,3292.0,0.48604]
[1737770783916,0.486,3292.3,3292.1,0.48603]
[1737770784712,3.2078,3292.4,3292.3,0.486]
[1737770785014,3.2078,3292.4,3292.2,0.48601]
[1737770785218,3.2078,3292.9,3292.3,3.2078]
[1737770785419,3.2078,3292.9,3292.8,0.48593]
[1737770785620,1.46586,3293.3,3293.0,0.48589]
[1737770785820,1.46586,3293.3,3293.1,0.5025]
[1737770786015,1.46586,3293.3,3293.1,1.0167]
[1737770786421,0.48587,3293.2,3293.1,1.0167]
[1737770789817,3.2078,3293.5,3293.4,0.48584]
[1737770790322,3.2078,3294.0,3293.7,0.48579]
[1737770791024,2.33559305,3294.6,3293.7,3.69359]
[1737770791025,5.54339305,3294.6,3293.7,3.69359]
[1737770791220,3.2078,3294.2,3293.4,0.00455235]
[1737770791519,3.7311,3294.1,3293.4,0.00455235]
[1737770791719,3.2078,3293.7,3293.5,0.48582]
[1737770792125,3.2078,3293.7,3293.4,0.00455235]
[1737770792419,0.00455235,3293.8,3293.4,0.00455235]
[1737770792615,0.00455235,3293.8,3293.7,0.48579]
[1737770792916,5.54339305,3294.6,3293.7,3.2078]
[1737770793425,3.69352,3294.2,3293.8,1.47917]
[1737770793731,3.69352,3294.2,3293.8,0.9934]
[1737770793918,3.2078,3294.2,3293.8,0.9934]
[1737770794115,0.48576,3294.0,3293.8,0.9934]
[1737770794317,0.48574,3294.1,3293.8,0.9934]
[1737770794519,0.48576,3294.0,3293.8,0.5004]
[1737770794718,3.2078,3294.2,3293.8,0.5004]
[1737770794925,0.48576,3294.0,3293.8,0.5004]
[1737770795222,3.2078,3294.2,3293.8,0.5004]
[1737770795417,0.48574,3294.1,3293.8,0.5004]
[1737770796020,3.69352,3294.2,3293.9,0.4796]
[1737770796322,0.00455235,3294.3,3293.9,0.4796]
[1737770796521,0.00455235,3294.3,3294.0,0.4896]
[1737770797626,0.00455235,3294.3,3294.2,0.48572]
[1737770797927,0.00455235,3294.3,3294.0,0.4896]
[1737770798130,0.00455235,3294.3,3294.1,0.48573]
[1737770800022,0.00455235,3294.3,3294.0,0.4896]
[1737770800223,0.00455235,3294.3,3294.2,0.48572]
[1737770805128,0.5241,3295.3,3294.3,1.21427]
[1737770805129,3.2078,3295.2,3294.3,1.21427]
[1737770805330,3.69337,3295.2,3294.9,0.48561]
[1737770805528,3.2078,3295.2,3295.0,0.479]
[1737770805827,3.2078,3295.2,3295.0,0.96459]
[1737770806922,3.2078,3295.2,3295.0,0.479]
[1737770807232,3.2078,3295.2,3294.1,5.54339305]
[1737770807233,0.48562,3294.9,3294.1,5.54339305]
[1737770807523,0.48562,3294.9,3294.7,0.48565]
[1737770808133,3.2078,3295.2,3294.5,0.515]
[1737770808329,0.48559,3295.1,3294.8,0.48563]
[1737770808528,3.2078,3295.2,3294.6,0.5072]
[1737770808737,3.2078,3295.2,3295.0,0.48559]
[1737770809035,3.2078,3295.2,3295.1,0.515]
[1737770809534,3.69337,3295.2,3295.1,0.515]
[1737770810332,0.48562,3294.9,3294.6,0.5072]
[1737770810631,0.48565,3294.7,3294.6,1.0237]
[1737770811035,0.4857,3294.4,3294.1,3.46972]
[1737770811334,0.4857,3294.4,3294.1,0.48572]
[1737770811534,0.48571,3294.3,3294.0,3.69354]
[1737770812429,3.2078,3294.1,3293.5,3.2078]
[1737770812622,3.2078,3294.1,3293.9,0.48576]
[1737770812830,5.1865,3294.6,3293.5,6.54049305]
[1737770813036,0.48569,3294.4,3294.1,0.48573]
[1737770813333,0.48569,3294.4,3294.2,0.9971]
[1737770814632,5.1865,3294.6,3294.2,0.9971]
[1737770814835,0.4857,3294.4,3294.2,0.9971]
[1737770815032,4.1868,3294.6,3294.2,0.9971]
[1737770815331,1.46466,3294.6,3294.3,0.4857]
[1737770815530,0.48566,3294.6,3294.3,0.4857]
[1737770816635,3.2078,3295.0,3294.3,3.2078]
[1737770816837,3.2078,3295.0,3294.8,0.48563]
[1737770817234,3.2078,3295.0,3294.9,0.48562]
[1737770819835,3.2078,3295.0,3294.3,3.2078]
[1737770820141,2.33559305,3294.9,3294.2,1.48281]
[1737770820344,0.48568,3294.5,3294.2,1.48281]
[1737770821137,0.48568,3294.5,3294.2,0.9971]
[1737770821335,3.2078,3294.6,3294.4,0.48569]
[1737770821741,3.69347,3294.6,3294.4,0.48569]
[1737770822433,3.69347,3294.6,3294.2,0.9971]
[1737770822631,0.48568,3294.5,3294.3,0.4857]
[1737770822936,0.48568,3294.5,3294.2,0.9971]
[1737770823138,0.48568,3294.5,3294.2,1.48281]
[1737770823536,3.2078,3294.6,3294.2,0.9971]
[1737770823748,0.48563,3294.8,3294.5,0.48568]
[1737770823939,0.48565,3294.7,3294.5,0.48568]
[1737770824844,0.48566,3294.6,3294.3,0.48569]
[1737770825139,3.2078,3294.6,3294.2,0.9971]
[1737770825335,0.48569,3294.4,3294.2,0.9971]
[1737770826831,0.4985,3294.5,3294.2,0.9971]
[1737770827035,0.98418,3294.5,3294.3,0.4857]
[1737770827637,3.2078,3295.0,3294.4,2.33559305]
[1737770827937,3.2078,3295.0,3294.9,0.48562]
[1737770830540,0.00455235,3295.4,3295.3,0.48556]
[1737770838343,0.00455235,3295.4,3295.3,2.82115305]
[1737770841050,3.2078,3296.6,3296.4,0.48539]
[1737770841255,3.2078,3296.6,3296.5,0.48538]
[1737770841455,3.2078,3296.6,3295.8,8.52739305]
[1737770841647,3.2078,3296.6,3296.3,0.4854]
[1737770841847,3.2078,3296.6,3296.4,0.48539]
[1737770842753,3.2078,3296.6,3296.5,0.48538]
[1737770845256,3.2078,3296.6,3296.3,0.5186]
[1737770845455,0.48539,3296.5,3296.2,0.48997235]
[1737770845657,0.48541,3296.3,3296.2,0.00455235]
[1737770847758,0.48740178,3296.3,3296.2,0.00455235]
[1737770850754,0.48552,3295.6,3295.4,0.48554]
[1737770850954,0.48552,3295.6,3295.3,3.2078]
[1737770851154,0.5075,3295.5,3295.4,0.48554]
[1737770854561,0.9977,3295.6,3295.5,0.48553]
[1737770855559,0.9977,3295.6,3295.3,0.48555]
[1737770856164,1.48321,3295.6,3295.3,0.48555]
[1737770856559,3.2078,3295.7,3295.6,0.48551]
[1737770856861,0.48548,3295.9,3295.6,0.48551]
[1737770857063,0.9763,3295.8,3295.6,0.48551]
[1737770859265,1.46179,3295.8,3295.6,0.48551]
[1737770859669,0.9763,3295.8,3295.6,0.48551]
[1737770860659,1.46179,3295.8,3295.6,0.48551]
[1737770861161,0.9763,3295.8,3295.6,0.48551]
[1737770862761,0.9763,3295.8,3295.1,3.46595235]
[1737770862967,0.48551,3295.7,3295.4,0.48554]
[1737770863370,0.4797,3295.6,3295.4,0.48554]
[1737770867068,0.4797,3295.6,3295.1,0.48195235]
[1737770867565,0.4797,3295.6,3295.4,0.48553]
[1737770867763,0.4797,3295.6,3295.1,0.00455235]
[1737770867965,3.2078,3295.7,3295.1,0.50465235]
[1737770868166,3.2078,3295.7,3295.6,0.48551]
[1737770877372,0.48548,3295.9,3295.6,0.48551]
[1737770877572,0.48548,3295.9,3295.7,0.4882]
[1737770879978,0.48548,3295.8,3295.7,0.4882]
[1737770881779,0.48553,3295.5,3295.4,0.5024]
[1737770883970,3.2078,3295.6,3295.5,0.48553]
[1737770884177,3.2078,3296.0,3295.4,0.5024]
[1737770884384,3.2078,3296.0,3295.8,0.48548]
[1737770884582,3.69326,3296.0,3295.9,1.002]
[1737770886183,3.2078,3296.0,3295.9,1.002]
[1737770886482,3.69326,3296.0,3295.9,1.002]
[1737770888689,0.48552,3295.6,3295.3,0.48555]
[1737770888874,0.48552,3295.6,3295.3,1.47805]
[1737770889287,0.48552,3295.6,3295.3,0.9925]
[1737770889488,0.48552,3295.6,3295.4,0.48554]
[1737770890188,3.2078,3296.0,3295.4,0.48553]
[1737770890390,0.48552,3295.6,3295.4,0.48553]
[1737770890788,3.69332,3295.6,3295.3,1.47805]
[1737770891397,0.48554,3295.4,3295.3,0.9925]
[1737770893398,3.2078,3295.6,3295.3,0.9925]
[1737770893599,0.48554,3295.5,3295.3,0.9925]
[1737770894201,3.2078,3295.6,3295.1,0.00455235]
[1737770894399,2.997,3296.1,3295.1,0.00455235]
[1737770894400,3.69337,3295.2,3295.1,0.00455235]
[1737770900204,3.2078,3295.2,3295.1,0.49014235]
[1737770910510,3.2078,3295.8,3295.7,0.4855]
[1737770910710,0.4806,3295.7,3295.6,0.48551]
[1737770911108,4.2197,3295.8,3295.7,0.4855]
[1737770911314,4.2197,3295.8,3295.3,0.4972]
[1737770911507,4.70518,3295.8,3295.6,0.48551]
[1737770911999,3.69328,3295.8,3295.6,0.48551]
[1737770913119,3.2078,3295.8,3295.3,0.4972]
[1737770913412,0.48551,3295.7,3295.5,0.48552]
[1737770914403,3.69329,3295.8,3295.6,0.48551]
[1737770915514,3.2078,3295.8,3295.7,0.4855]
[1737770916713,0.48544,3296.1,3295.9,0.48547]
[1737770917115,1.00854,3296.2,3295.9,0.48547]
[1737770917305,0.5231,3296.2,3295.9,0.48547]
[1737770917610,0.48544,3296.1,3295.9,0.48547]
[1737770918117,0.5231,3296.2,3295.9,0.48546]
[1737770918318,0.48544,3296.1,3295.9,0.48546]
[1737770920116,0.48544,3296.1,3296.0,0.5154]
[1737770922020,3.2078,3296.3,3296.0,0.5154]
[1737770922325,0.48537,3296.6,3296.3,0.4854]
[1737770922522,0.48537,3296.6,3296.4,0.48539]
[1737770922715,0.48537,3296.6,3296.4,0.48348121]
[1737770923228,0.9845,3296.7,3296.0,0.5154]
[1737770923522,0.48541,3296.4,3296.1,0.48543]
[1737770924114,0.9845,3296.7,3296.0,0.5154]
[1737770924320,3.2078,3296.4,3295.8,0.48548]
[1737770924515,0.48546,3296.0,3295.8,0.48548]
[1737770925822,3.2078,3296.4,3295.8,0.48548]
[1737770926021,3.2078,3296.4,3295.7,0.9957]
[1737770926223,0.48543,3296.2,3296.0,0.48545]
[1737770927223,3.2078,3296.4,3295.8,2.33559305]
[1737770927419,3.2078,3296.4,3296.3,0.48541]
[1737770928429,0.9845,3296.7,3296.0,3.2078]
[1737770928621,1.46986,3296.7,3296.4,0.48539]
[1737770929219,0.9845,3296.7,3296.6,0.48537]
[1737770929419,0.00300149,3296.8,3296.7,0.48535]
[1737770929615,0.00300149,3296.8,3296.7,2.82094305]
[1737770929820,11.85333928,3297.5,3296.8,0.48534]
[1737770930023,11.85333928,3297.5,3297.0,2.33559305]
[1737770930226,6.64887077,3297.5,3297.4,0.48525]
[1737770930424,1.14018077,3297.5,3297.4,0.94019321]
[1737770930623,12.97680869,3298.5,3297.4,5.94019321]
[1737770930826,12.97680869,3298.5,3298.2,2.33559305]
[1737770931122,12.97680869,3298.5,3298.4,0.4851]
[1737770931527,12.97680869,3298.5,3298.4,5.4851]
[1737770931829,0.00455235,3298.7,3298.4,5.4851]
[1737770931830,0.00455235,3298.7,3298.6,0.48507]
[1737770932024,0.00455235,3298.7,3298.6,2.82066305]
[1737770935528,0.00455235,3298.7,3298.6,7.82066305]
[1737770935828,0.00455235,3298.7,3298.6,2.82066305]
[1737770938031,0.00455235,3298.7,3298.6,2.33559305]
[1737770938423,0.00455235,3298.7,3298.6,2.82066305]
[1737770953036,3.21235235,3298.7,3298.3,5.31959305]
[1737770953234,3.21235235,3298.7,3298.3,0.4851]
[1737770953235,0.48508,3298.6,3298.3,0.4851]
[1737770953435,1.0157,3298.5,3298.0,5.31959305]
[1737770953635,1.50079,3298.5,3298.2,0.48512]
[1737770953839,0.5037,3298.4,3298.2,0.48512]
[1737770955143,0.5037,3298.4,3298.3,0.48512]
[1737770956639,0.5037,3298.4,3298.0,5.31959305]
[1737770956945,0.5037,3298.4,3298.3,0.48512]
[1737770958441,0.5037,3298.4,3298.3,0.93958392]
[1737770958645,0.5037,3298.4,3298.3,0.45446874]
[1737770958846,0.5037,3298.4,3298.0,2.33559305]
[1737770959042,0.5037,3298.4,3298.1,0.45446965]
[1737770959349,0.98881,3298.4,3298.2,0.45446965]
[1737770959543,0.98881,3298.4,3298.3,0.45446965]
[1737770960339,0.98881,3298.4,3298.0,2.33559305]
[1737770960538,0.98881,3298.4,3298.2,0.48513]
[1737770961147,0.98881,3298.4,3298.1,0.48514]
[1737770963047,0.98881,3298.4,3298.2,0.48513]
[1737770963453,0.98881,3298.4,3298.1,0.48514]
[1737770963849,3.2078,3298.2,3298.1,0.48514]
[1737770967959,3.69294,3298.2,3298.0,0.48516]
[1737770972063,3.69294,3298.2,3297.7,5.31959305]
[1737770972465,3.69294,3298.2,3297.8,0.45195491]
[1737770972657,3.69294,3298.2,3298.0,0.48516]
[1737770973665,3.2078,3298.2,3298.0,0.48516]
[1737770974253,3.69294,3298.2,3297.9,0.48517]
[1737770974460,3.2078,3298.2,3298.0,0.48516]
[1737770976769,3.2078,3298.2,3298.1,0.48515]
[1737770978267,3.2078,3298.2,3298.0,0.48515]
[1737770978860,3.2078,3298.2,3297.7,5.31959305]
[1737770979069,3.2078,3298.2,3298.1,0.48515]
[1737770980562,3.2078,3298.2,3298.1,0.93762153]
[1737770980770,3.2078,3298.2,3298.1,0.48515]
[1737770981071,3.2078,3298.2,3297.7,2.33559305]
[1737770981365,0.48517,3298.0,3297.8,0.45267453]
[1737770981568,1.0012,3297.9,3297.7,0.4852]
[1737770981773,3.2078,3297.8,3297.7,0.4852]
[1737770982071,3.2078,3297.8,3297.7,0.93787246]
[1737770983472,3.2078,3297.8,3297.7,0.93818459]
[1737770984069,3.2078,3297.8,3297.7,0.93818474]
[1737770984969,1.0012,3297.9,3297.8,0.48519]
[1737770985271,3.2078,3298.2,3298.1,0.48515]
[1737770985476,3.2078,3298.2,3298.1,0.93813474]
[1737770985663,0.517,3298.3,3298.2,0.48513]
[1737770985867,3.2078,3298.6,3298.5,0.48509]
[1737770986062,0.00455235,3298.7,3298.6,0.48507]
[1737770986369,0.00455235,3298.7,3298.6,0.93805474]
[1737770987774,0.00455235,3298.7,3298.6,0.937707]
[1737770989376,3.69741235,3298.7,3298.4,0.48509]
[1737770989770,3.21235235,3298.7,3298.4,0.48509]
[1737770990385,3.69741235,3298.7,3298.4,0.48509]
[1737770990583,3.21235235,3298.7,3298.2,2.984]
[1737770990783,3.21235235,3298.7,3298.3,0.45243416]
[1737770991085,3.69741235,3298.7,3298.4,0.48509]
[1737770991279,3.69741235,3298.7,3298.3,0.48511]
[1737770991678,0.48508,3298.6,3298.3,0.48511]
[1737770991878,3.21235235,3298.7,3298.0,0.48515]
[1737770991879,0.48512,3298.3,3298.0,0.48515]
[1737770992180,0.479,3298.5,3297.8,5.31959305]
[1737770992181,4.1797,3298.2,3298.1,0.93757121]
[1737770992387,4.1797,3298.2,3298.1,0.48514]
[1737770995282,4.1797,3298.2,3298.1,0.93757156]
[1737770996093,4.1797,3298.2,3298.1,0.93757167]
[1737770996791,4.1797,3298.2,3298.1,0.93757177]
[1737770998493,3.6972,3298.2,3298.1,3.27316482]
[1737770998693,3.2078,3298.2,3298.1,3.27316482]
[1737771000296,0.4987,3298.6,3298.1,2.78802482]
[1737771000501,0.4987,3298.6,3298.5,0.48509]
[1737771001594,0.4987,3298.6,3298.5,0.93744569]
[1737771001991,0.9994,3298.6,3298.5,0.48509]
[1737771003197,0.48509,3298.5,3298.3,3.46911]
[1737771003397,0.5122,3298.5,3298.3,2.984]
[1737771003601,0.5122,3298.5,3298.4,0.4851]
[1737771004600,0.9994,3298.6,3298.4,0.4851]
[1737771004799,0.9994,3298.6,3298.4,2.82069305]
[1737771006607,0.9994,3298.6,3298.5,0.48509]
[1737771009195,0.9994,3298.6,3298.4,2.33559305]
[1737771009397,0.48511,3298.4,3298.2,0.48513]
[1737771009597,3.2078,3298.5,3297.9,10.94634223]
[1737771009907,3.2078,3298.1,3297.9,4.75454223]
[1737771010197,1.98586,3298.0,3297.9,4.75454223]
[1737771011002,1.98586,3298.0,3297.5,10.07413528]
[1737771011003,1.5007,3298.0,3297.5,10.07413528]
[1737771011203,1.5007,3298.0,3297.9,0.48518]
[1737771011391,1.5007,3298.0,3297.5,7.09013528]
[1737771011590,1.5007,3298.0,3297.6,0.48522]
[1737771011591,0.48518,3297.9,3297.6,0.48522]
[1737771011797,3.2078,3297.7,3297.6,0.48522]
[1737771012198,3.2078,3297.7,3297.5,7.09013528]
[1737771012393,3.2078,3297.7,3297.5,7.57536528]
[1737771013691,3.2078,3297.7,3297.5,7.09013528]
[1737771013896,0.48522,3297.6,3297.5,4.75454223]
[1737771014205,3.2078,3297.7,3297.2,12.11288582]
[1737771014206,0.48525,3297.5,3297.2,2.82086305]
[1737771014506,1.0243,3297.4,3297.2,2.82086305]
[1737771014806,1.5224,3297.4,3297.2,2.82086305]
[1737771015705,1.5224,3297.4,3297.2,2.33559305]
[1737771016108,2.00765,3297.4,3297.2,2.33559305]
[1737771017908,1.5224,3297.4,3297.2,2.33559305]
[1737771018207,1.5224,3297.4,3297.2,2.82087305]
[1737771023817,1.5224,3297.4,3297.3,0.48526]
[1737771025216,4.7302,3297.4,3297.3,0.48526]
[1737771033414,4.7302,3297.4,3297.2,0.48528]
[1737771033914,4.7302,3297.4,3297.3,0.48526]
[1737771037717,4.7302,3297.4,3297.3,1.58943799]
[1737771038917,4.7302,3297.4,3297.3,1.10417799]
[1737771039216,4.7302,3297.4,3297.3,0.48526]
[1737771039916,4.7302,3297.4,3297.3,1.58943799]
[1737771040920,4.7302,3297.4,3297.3,1.10417799]
[1737771041624,0.48528,3297.3,3297.1,1.10873034]
[1737771042117,0.48528,3297.2,3297.1,1.10873034]
[1737771042519,0.48528,3297.2,3297.1,0.00455235]
[1737771044014,0.48527,3297.3,3297.1,1.59401034]
[1737771044922,0.48528,3297.2,3297.1,1.10873034]
[1737771045712,0.48528,3297.2,3297.1,0.00455235]
[1737771045919,0.48537,3296.6,3296.3,1.58957799]
[1737771046218,1.0435,3296.5,3296.3,1.10417799]
[1737771046418,1.0435,3296.5,3296.3,1.58957799]
[1737771046724,1.0435,3296.5,3296.3,1.10417799]
[1737771047025,1.0435,3296.5,3296.3,1.58957799]
[1737771049027,0.4823,3296.4,3296.3,1.58957799]
[1737771049725,0.4823,3296.4,3296.3,0.4854]
[1737771050222,0.4823,3296.4,3296.3,2.81938985]
[1737771050627,3.2078,3296.6,3296.5,0.48538]
[1737771057720,3.2078,3296.6,3296.3,0.4854]
[1737771058014,0.48539,3296.5,3296.3,0.4854]
[1737771058528,0.5137,3296.4,3296.3,0.4854]
[1737771061023,3.69317,3296.6,3296.5,0.48538]
[1737771061024,3.2078,3296.6,3296.5,0.48538]
[1737771061629,3.2078,3296.6,3296.5,0.94038]
[1737771062336,0.00455235,3296.7,3296.6,0.48537]
[1737771062631,0.00455235,3296.7,3296.6,6.02715985]
[1737771063020,3.2078,3297.6,3296.6,16.30874635]
[1737771063220,3.7041,3297.6,3297.5,0.48523]
[1737771064743,3.7041,3297.6,3297.4,2.33398985]
[1737771065037,3.7041,3297.6,3297.4,0.48525]
[1737771066930,3.7041,3297.6,3297.1,2.33398985]
[1737771066931,3.7041,3297.6,3297.5,0.48523]
[1737771068733,3.7041,3297.6,3297.4,0.48525]
[1737771071035,3.7041,3297.6,3297.5,0.48523]
[1737771081741,3.2078,3298.8,3298.7,0.48505]
[1737771088449,3.2078,3298.8,3298.7,0.9399491]
[1737771088846,3.2078,3299.6,3298.8,1.69766]
[1737771089148,3.2078,3299.6,3299.5,2.81892985]
[1737771090348,1.0181,3299.8,3299.7,0.48491]
[1737771091050,0.4903,3299.8,3299.7,0.48491]
[1737771110369,0.4903,3299.8,3299.7,0.9394567]
[1737771111361,0.4903,3299.8,3299.7,0.93945849]
[1737771112466,0.5066,3300.3,3299.7,0.45454849]
[1737771112670,0.5066,3300.3,3299.6,3.2078]
[1737771112671,0.5066,3300.3,3300.2,0.48484]
[1737771113370,0.5066,3300.3,3300.2,0.94011991]
[1737771113866,1.0231,3300.3,3300.2,0.48484]
[1737771114273,1.0231,3300.3,3300.2,0.94032193]
[1737771114669,1.0231,3300.3,3300.2,0.94032474]
[1737771114868,1.0231,3300.3,3300.1,2.33398985]
[1737771115267,1.0231,3300.3,3300.1,2.81883985]
[1737771115569,1.0231,3300.3,3300.2,0.94060157]
[1737771117081,1.0231,3300.3,3300.2,0.94094848]
[1737771117580,1.0231,3300.3,3300.2,0.94122763]
[1737771119175,1.0231,3300.3,3300.2,0.9415762]
[1737771121283,1.0231,3300.3,3300.2,0.4567362]
[1737771121468,0.48486,3300.1,3299.9,0.48488]
[1737771121673,3.69266,3300.1,3299.8,2.81887985]
[1737771121874,0.48487,3300.0,3299.8,2.81887985]
[1737771122484,3.69266,3300.1,3299.8,2.33398985]
[1737771122875,3.69266,3300.1,3299.8,2.81887985]
[1737771123775,3.2078,3300.1,3299.8,2.81887985]
[1737771124785,3.69265,3300.1,3299.8,2.81887985]
[1737771126280,1.0231,3300.3,3299.9,0.48487]
[1737771126486,3.2078,3300.1,3299.8,2.81887985]
[1737771126680,3.2078,3300.1,3299.8,2.33398985]
[1737771126887,1.0231,3300.3,3299.8,2.33398985]
[1737771127089,1.0231,3300.3,3300.2,2.81882985]
[1737771127285,0.4978,3300.4,3300.2,2.33398985]
[1737771127480,0.4978,3300.4,3300.3,0.48482]
[1737771128883,3.2078,3300.5,3300.4,0.48481]
[1737771129078,0.5101,3300.6,3300.2,2.33398985]
[1737771129283,0.5263,3300.9,3300.8,0.48475]
[1737771129483,0.5263,3300.9,3300.8,2.81873985]
[1737771131488,0.5263,3300.9,3300.8,2.33398985]
[1737771131991,3.7341,3300.9,3300.5,2.33398985]
[1737771132189,3.7341,3300.9,3300.6,0.48477]
[1737771132690,4.21884,3300.9,3300.5,2.81877985]
[1737771133788,3.7341,3300.9,3300.6,0.48478]
[1737771136187,3.7341,3300.9,3300.7,0.48475]
[1737771137282,3.7341,3300.9,3300.8,2.81873985]
[1737771140785,0.5265,3301.0,3300.9,0.48474]
[1737771141984,1.0116,3301.2,3301.1,0.48471]
[1737771142189,1.0116,3301.2,3301.1,2.81869985]
[1737771142382,0.4867,3301.2,3301.1,2.81869985]
[1737771142990,0.5043,3301.6,3301.1,2.33398985]
[1737771143190,0.5108,3301.5,3301.4,0.48465]
[1737771146293,0.5043,3301.6,3301.5,0.48465]
[1737771147292,3.7191,3301.7,3301.4,2.33398985]
[1737771147590,3.7191,3301.7,3301.6,0.48463]
[1737771148377,3.7191,3301.7,3300.9,0.4533]
[1737771148378,3.7191,3301.7,3301.1,2.33398985]
[1737771148581,3.7191,3301.7,3301.2,0.48468]
[1737771148791,0.48465,3301.6,3301.2,0.48468]
[1737771148990,3.7191,3301.7,3301.1,2.33398985]
[1737771149192,4.20372,3301.7,3301.3,0.48467]
[1737771150189,0.00228385,3301.6,3301.3,0.48467]
[1737771151897,0.00228385,3301.6,3301.4,0.48466]
[1737771154300,0.00228385,3301.6,3301.5,0.48465]
[1737771159594,0.00228385,3301.6,3301.5,0.93785]
[1737771159898,0.00228385,3301.6,3301.5,1.39785]
[1737771161101,3.2078,3302.3,3301.5,1.39785]
[1737771161299,3.7238,3302.3,3302.2,0.48454]
[1737771161503,0.516,3302.3,3302.2,0.48454]
[1737771163312,0.5227,3302.4,3302.3,0.48453]
[1737771164605,0.5227,3302.4,3302.3,2.81851985]
[1737771173911,3.7204,3302.5,3302.4,0.48452]
[1737771174625,0.5126,3302.5,3302.4,0.48452]
[1737771175313,0.5126,3302.5,3302.4,0.93603189]
[1737771175510,0.5126,3302.5,3302.4,0.93602601]
[1737771177524,0.5126,3302.5,3302.4,0.93583373]
[1737771178621,0.5195,3302.7,3302.4,0.45131373]
[1737771178813,0.5195,3302.7,3302.6,2.81847985]
[1737771179012,0.5168,3302.8,3302.7,0.48447]
[1737771179223,0.5168,3302.8,3302.7,0.93578373]
[1737771179419,0.4785,3303.0,3302.9,0.48444]
[1737771179617,0.4785,3303.0,3302.9,3.26951357]
[1737771179818,0.5252,3303.2,3302.9,2.78507357]
[1737771180016,0.5252,3303.2,3303.1,0.48441]
[1737771180217,0.5252,3303.2,3303.1,0.93543359]
[1737771180417,0.5252,3303.2,3303.1,0.48441]
[1737771180613,3.2078,3303.3,3303.2,0.4844]
[1737771180814,3.2078,3303.3,3303.2,2.81838985]
[1737771181018,3.2078,3303.3,3303.2,3.26939547]
[1737771181520,3.2078,3303.3,3303.2,2.81838985]
[1737771181826,0.4794,3303.4,3303.3,0.48438]
[1737771183523,0.4794,3303.4,3303.2,2.33398985]
[1737771183724,0.4794,3303.4,3303.2,2.81837985]
[1737771184127,3.2078,3303.3,3302.9,2.33398985]